bitfinex/quotes_BTCUSD_20250224
["timestamp","ask_amount","ask_price","bid_price","bid_amount"]
[1740419451220,0.16017958,95145.0,95144.0,0.00327899]
[1740419452758,0.16017958,95145.0,95144.0,0.00127899]
[1740419452940,0.16017958,95145.0,95144.0,0.00327899]
[1740419453339,0.16017958,95145.0,95144.0,0.00127899]
[1740419453550,0.16017958,95145.0,95144.0,0.00327899]
[1740419453748,0.16017958,95145.0,95144.0,0.00427899]
[1740419456864,0.31017958,95145.0,95144.0,0.00427899]
[1740419457067,0.42801495,95145.0,95144.0,0.00427899]
[1740419457289,0.41282527,95145.0,95144.0,0.00427899]
[1740419458913,0.41282527,95145.0,95144.0,0.00127899]
[1740419459120,0.41382527,95145.0,95144.0,0.00127899]
[1740419459498,0.41282527,95145.0,95144.0,0.00127899]
[1740419459705,0.5038379,95145.0,95144.0,0.00127899]
[1740419459904,0.41482527,95145.0,95144.0,0.00127899]
[1740419462113,0.45492527,95145.0,95144.0,9.9e-07]
[1740419462320,0.307675,95132.0,95131.0,0.0008494]
[1740419462536,0.51869106,95132.0,95131.0,0.0008494]
[1740419463170,0.48792356,95132.0,95131.0,0.0008494]
[1740419463805,0.48992356,95132.0,95131.0,0.0008494]
[1740419464022,0.49092356,95132.0,95131.0,0.0008494]
[1740419464867,0.48892356,95132.0,95131.0,0.0008494]
[1740419465062,0.49392356,95132.0,95131.0,0.0008494]
[1740419465270,0.49292356,95132.0,95131.0,0.0008494]
[1740419465474,0.49692356,95132.0,95131.0,0.0008494]
[1740419465679,0.49292356,95132.0,95131.0,0.0008494]
[1740419466089,0.49692356,95132.0,95131.0,0.0008494]
[1740419466494,0.49692356,95132.0,95131.0,4e-07]
[1740419466698,0.307703,95115.0,95095.0,0.1244]
[1740419466899,0.49252831,95115.0,95095.0,0.0484]
[1740419467967,0.49257121,95115.0,95114.0,0.0018493]
[1740419469076,0.50044574,95115.0,95114.0,0.0018493]
[1740419469276,0.50044574,95115.0,95114.0,0.0028493]
[1740419469501,0.60309143,95115.0,95114.0,0.0018493]
[1740419469904,0.60609143,95115.0,95114.0,0.0008493]
[1740419470131,0.60909143,95115.0,95114.0,0.0008493]
[1740419470538,0.60609143,95115.0,95114.0,0.0008493]
[1740419470668,0.50044574,95115.0,95114.0,0.0008493]
[1740419470911,0.50644574,95115.0,95114.0,0.0018493]
[1740419471116,0.307708,95112.0,95095.0,0.0484]
[1740419471357,0.5156438,95112.0,95095.0,0.0484]
[1740419471614,0.5156438,95112.0,95093.0,0.001699]
[1740419472239,0.41299811,95112.0,95093.0,0.001699]
[1740419472446,0.41599811,95112.0,95093.0,0.001699]
[1740419473246,0.42099811,95112.0,95093.0,0.001699]
[1740419474084,0.41599811,95112.0,95093.0,0.001699]
[1740419474285,0.41999811,95112.0,95093.0,0.001699]
[1740419475204,0.5196438,95112.0,95093.0,0.001699]
[1740419475416,0.5216438,95112.0,95093.0,0.001699]
[1740419476178,0.41899811,95112.0,95104.0,0.1266]
[1740419477390,0.41499811,95112.0,95104.0,0.1266]
[1740419477598,0.15464442,95112.0,95104.0,0.1266]
[1740419477807,0.31335242,95112.0,95104.0,0.1266]
[1740419478219,0.31135242,95112.0,95104.0,0.1266]
[1740419478442,0.31135242,95112.0,95111.0,0.0014]
[1740419479093,0.31035242,95112.0,95111.0,0.0014]
[1740419481681,0.31035242,95112.0,95111.0,0.0022497]
[1740419482061,0.00264442,95112.0,95111.0,0.2906597]
[1740419482259,0.00264442,95112.0,95111.0,0.39330539]
[1740419482457,4.29e-05,95115.0,95114.0,0.284305]
[1740419482780,0.157653,95146.0,95134.0,0.28427]
[1740419482979,0.00128037,95145.0,95136.0,0.157668]
[1740419483227,0.00254087,95144.0,95134.0,0.1266]
[1740419483432,0.15767,95135.0,95134.0,0.1266]
[1740419484010,0.00253945,95135.0,95134.0,0.1266]
[1740419484458,0.00128037,95145.0,95134.0,0.1266]
[1740419484701,0.0025441,95135.0,95134.0,0.336829]
[1740419484908,0.00658235,95135.0,95134.0,0.336829]
[1740419485118,0.00758235,95135.0,95134.0,0.341829]
[1740419485656,0.00658235,95135.0,95134.0,0.61305636]
[1740419485861,0.00658235,95135.0,95134.0,0.71570205]
[1740419486418,0.00658235,95135.0,95134.0,0.72070205]
[1740419486753,0.00658235,95135.0,95134.0,0.72270205]
[1740419486881,0.00128037,95145.0,95144.0,0.288855]
[1740419489924,0.00128037,95145.0,95144.0,0.298855]
[1740419490156,0.00228037,95145.0,95144.0,0.1412]
[1740419490361,0.00228037,95145.0,95144.0,0.41742736]
[1740419491163,0.00228037,95145.0,95144.0,0.57508236]
[1740419491546,0.00228037,95145.0,95144.0,0.41742736]
[1740419492217,0.15993437,95145.0,95144.0,0.41742736]
[1740419492380,0.1624824,95145.0,95144.0,0.41742736]
[1740419492779,0.1624824,95145.0,95144.0,0.33482736]
[1740419495433,0.1624824,95145.0,95144.0,0.28622736]
[1740419496237,0.1624824,95145.0,95132.0,0.0461]
[1740419496238,0.0038284,95145.0,95132.0,0.0461]
[1740419496633,0.15893437,95145.0,95144.0,0.003]
[1740419497087,0.16150183,95145.0,95144.0,0.003]
[1740419497579,0.16150183,95145.0,95144.0,0.005]
[1740419497735,0.16150183,95145.0,95144.0,0.002]
[1740419497930,0.16150183,95145.0,95132.0,0.0461]
[1740419497931,0.157673,95133.0,95132.0,0.0461]
[1740419498134,0.157692,95122.0,95121.0,0.121]
[1740419498336,0.00256745,95122.0,95121.0,0.121]
[1740419498981,0.157692,95122.0,95121.0,0.121]
[1740419499195,0.16026017,95122.0,95121.0,0.121]
[1740419499497,0.16026017,95122.0,95121.0,0.126]
[1740419499498,0.16126017,95122.0,95121.0,0.126]
[1740419499707,0.00356817,95122.0,95121.0,0.126]
[1740419499921,0.16126017,95122.0,95121.0,0.126]
[1740419500207,0.158692,95122.0,95121.0,0.126]
[1740419500512,0.16125122,95122.0,95121.0,0.126]
[1740419500722,0.16225122,95122.0,95121.0,0.133]
[1740419501509,0.00455922,95122.0,95121.0,0.133]
[1740419501929,0.002,95122.0,95121.0,0.133]
[1740419502452,0.00455831,95122.0,95121.0,0.133]
[1740419502660,0.002,95122.0,95121.0,0.133]
[1740419502867,0.00455831,95122.0,95121.0,0.133]
[1740419503090,0.159692,95122.0,95121.0,0.133]
[1740419503301,0.16225031,95122.0,95121.0,0.133]
[1740419504565,0.00455831,95122.0,95121.0,0.133]
[1740419504981,0.002,95122.0,95121.0,0.133]
[1740419505406,0.002,95122.0,95121.0,0.290693]
[1740419505779,0.002,95122.0,95121.0,0.39333869]
[1740419512277,0.002,95122.0,95121.0,0.41118358]
[1740419512897,0.002,95122.0,95121.0,0.39333869]
[1740419516948,0.0036998,95122.0,95121.0,0.39333869]
[1740419517993,0.0036998,95122.0,95121.0,0.40245869]
[1740419518233,0.0036998,95122.0,95121.0,0.133]
[1740419519877,0.0036998,95122.0,95121.0,0.290693]
[1740419520077,0.0036998,95122.0,95121.0,0.39333869]
[1740419520873,0.0036998,95122.0,95121.0,0.133]
[1740419521272,0.0036998,95122.0,95121.0,0.0578]
[1740419521482,0.1613918,95122.0,95121.0,0.012]
[1740419521680,0.3871918,95122.0,95121.0,0.012]
[1740419521879,0.4923274,95122.0,95121.0,0.012]
[1740419522835,0.50883654,95122.0,95121.0,0.005]
[1740419523053,0.307702,95116.0,95115.0,0.0008499]
[1740419523245,0.41034769,95116.0,95115.0,0.0008499]
[1740419523419,0.50220898,95116.0,95115.0,0.0008499]
[1740419523771,0.51674983,95116.0,95115.0,0.0008499]
[1740419524309,0.59974983,95116.0,95115.0,4.6e-07]
[1740419524521,0.307708,95112.0,95111.0,1.6e-07]
[1740419524724,0.41035369,95112.0,95111.0,0.00012944]
[1740419524931,0.52999508,95112.0,95111.0,0.00012944]
[1740419525602,0.42734939,95112.0,95111.0,0.00012944]
[1740419526210,0.11964139,95112.0,95111.0,0.00012944]
[1740419526405,0.283935,95112.0,95111.0,0.00012944]
[1740419526927,0.283935,95112.0,95111.0,4.4e-07]
[1740419527631,0.287935,95112.0,95111.0,4.4e-07]
[1740419527787,0.290935,95112.0,95111.0,4.4e-07]
[1740419527988,0.287935,95112.0,95111.0,4.4e-07]
[1740419528364,0.442935,95112.0,95111.0,0.00085034]
[1740419528797,0.45079997,95112.0,95111.0,0.00085034]
[1740419528975,0.44679997,95112.0,95111.0,0.00085034]
[1740419529185,0.45279997,95112.0,95111.0,0.00085034]
[1740419529394,0.43825912,95112.0,95111.0,0.00085034]
[1740419529603,0.41880854,95112.0,95111.0,0.00085034]
[1740419529806,0.41280854,95112.0,95111.0,0.00085034]
[1740419530030,0.42580854,95112.0,95111.0,0.00085034]
[1740419530228,0.41980854,95112.0,95111.0,0.00085034]
[1740419530433,0.42280854,95112.0,95111.0,0.00085034]
[1740419530633,0.41580854,95112.0,95111.0,0.00085034]
[1740419530843,0.26980854,95112.0,95111.0,0.00085034]
[1740419531220,0.26680854,95112.0,95111.0,0.00085034]
[1740419531471,0.26880854,95112.0,95111.0,0.00085034]
[1740419532327,0.30948116,95112.0,95111.0,0.00085034]
[1740419532502,0.26880854,95112.0,95111.0,0.00085034]
[1740419532735,0.26480854,95112.0,95111.0,0.00085034]
[1740419532915,0.26680854,95112.0,95111.0,0.00085034]
[1740419533195,0.49720854,95112.0,95111.0,0.00085034]
[1740419533404,0.32226785,95101.0,95076.0,0.0016984]
[1740419533662,0.50331354,95101.0,95100.0,8.29e-05]
[1740419534048,0.50576575,95101.0,95100.0,8.29e-05]
[1740419534819,0.51535273,95101.0,95100.0,8.29e-05]
[1740419535489,0.51535273,95101.0,95100.0,9e-07]
[1740419535634,0.61799842,95101.0,95100.0,9e-07]
[1740419536175,0.62199842,95101.0,95100.0,9e-07]
[1740419536885,0.51935273,95101.0,95100.0,9e-07]
[1740419538736,0.51935273,95101.0,95093.0,9e-07]
[1740419538737,0.390638,95094.0,95093.0,9e-07]
[1740419538963,0.33554569,95094.0,95076.0,0.0016984]
[1740419539160,0.157766,95077.0,95076.0,0.0016984]
[1740419539589,0.16018052,95077.0,95076.0,0.0016984]
[1740419540887,0.1667675,95077.0,95076.0,0.0016984]
[1740419541630,0.26941319,95077.0,95076.0,0.0016984]
[1740419542231,0.18478753,95077.0,95076.0,0.0016984]
[1740419542735,0.02702153,95077.0,95076.0,0.0016984]
[1740419542960,0.0090015,95077.0,95076.0,0.2925264]
[1740419543106,0.0090015,95077.0,95076.0,0.56286529]
[1740419543333,0.09388208,95134.0,95100.0,0.286228]
[1740419543556,0.210224,95137.0,95100.0,0.286228]
[1740419543718,0.01745999,95117.0,95100.0,0.1285]
[1740419543950,0.1594262,95101.0,95100.0,0.1285]
[1740419544414,0.16162254,95101.0,95100.0,0.1285]
[1740419544619,0.16162254,95101.0,95100.0,0.0493]
[1740419546319,0.00389554,95101.0,95100.0,0.207028]
[1740419546564,0.00389554,95101.0,95100.0,0.0493]
[1740419546774,0.0016992,95101.0,95100.0,0.207028]
[1740419546975,0.0016992,95101.0,95100.0,0.0493]
[1740419547339,0.0016992,95101.0,95100.0,0.207028]
[1740419547555,0.0016992,95101.0,95100.0,0.1306]
[1740419547962,0.0026992,95101.0,95100.0,0.1326]
[1740419548327,0.0026992,95101.0,95100.0,0.1306]
[1740419548328,0.1594262,95101.0,95100.0,0.1306]
[1740419548546,0.0016992,95101.0,95100.0,0.1306]
[1740419548749,0.00389511,95101.0,95100.0,0.1306]
[1740419548959,0.0026992,95101.0,95100.0,0.1306]
[1740419549168,0.16262201,95101.0,95100.0,0.1306]
[1740419549537,0.00389501,95101.0,95100.0,0.1306]
[1740419549735,0.00589501,95101.0,95100.0,0.1306]
[1740419550846,0.00489501,95101.0,95100.0,0.1306]
[1740419551108,0.00589479,95101.0,95100.0,0.1306]
[1740419551264,0.16362179,95101.0,95100.0,0.1306]
[1740419551480,0.16362162,95101.0,95100.0,0.1306]
[1740419551672,0.157738,95094.0,95093.0,0.0819]
[1740419552340,0.15993487,95094.0,95093.0,0.0819]
[1740419553151,0.157743,95091.0,95090.0,0.0453]
[1740419553581,0.15993915,95091.0,95090.0,0.0453]
[1740419554032,0.15776,95081.0,95080.0,0.0819]
[1740419554644,0.15995545,95081.0,95080.0,0.0819]
[1740419554885,0.157763,95079.0,95078.0,0.0453]
[1740419555309,0.15995702,95079.0,95078.0,0.0453]
[1740419555932,0.157766,95077.0,95076.0,0.0016984]
[1740419556175,0.26041169,95077.0,95076.0,0.0016984]
[1740419556400,0.26259367,95077.0,95076.0,0.0016984]
[1740419557030,0.27993554,95077.0,95076.0,0.0016984]
[1740419560838,0.17728985,95077.0,95076.0,0.0016984]
[1740419561195,0.01952385,95077.0,95076.0,0.0016984]
[1740419561441,0.17728985,95077.0,95076.0,0.0016984]
[1740419561867,0.00218198,95077.0,95076.0,0.0016984]
[1740419562010,0.15,95095.0,95076.0,0.0016984]
[1740419562212,0.02,95114.0,95076.0,0.0016984]
[1740419562417,0.15776,95081.0,95080.0,0.01902285]
[1740419562861,0.15985645,95081.0,95080.0,0.01902285]
[1740419571185,0.157765,95078.0,95077.0,0.0008498]
[1740419571602,0.15985654,95078.0,95077.0,0.0008498]
[1740419572437,0.29393851,95078.0,95077.0,0.0008498]
[1740419572596,0.26250223,95078.0,95077.0,0.0008498]
[1740419578657,0.15,95077.0,95076.0,2e-07]
[1740419578799,0.41041169,95077.0,95076.0,2e-07]
[1740419579171,0.41243999,95077.0,95076.0,2e-07]
[1740419579370,0.51508568,95077.0,95076.0,2e-07]
[1740419579992,0.51708568,95077.0,95076.0,2e-07]
[1740419580221,0.51808568,95077.0,95076.0,2e-07]
[1740419580640,0.53262653,95077.0,95076.0,2e-07]
[1740419581609,0.157775,95072.0,95071.0,2e-07]
[1740419581837,0.26042069,95072.0,95071.0,0.00011331]
[1740419581990,0.26243855,95072.0,95071.0,0.00011331]
[1740419582208,0.2769794,95072.0,95071.0,3.1e-07]
[1740419582776,0.02,95063.0,95048.0,1e-06]
[1740419582980,0.307829,95039.0,95035.0,0.0016994]
[1740419583196,0.41047469,95039.0,95035.0,0.0016994]
[1740419583402,0.41247379,95039.0,95038.0,0.00128095]
[1740419585658,0.41247379,95039.0,95035.0,3.5e-07]
[1740419585659,0.307834,95036.0,95035.0,3.5e-07]
[1740419585900,0.52766623,95036.0,95035.0,3.5e-07]
[1740419586304,0.307888,95004.0,95003.0,1e-06]
[1740419586456,0.31568512,95004.0,95003.0,1e-06]
[1740419586656,0.33022597,95004.0,95003.0,1e-06]
[1740419587262,0.41833081,95004.0,95003.0,1e-06]
[1740419587464,0.42010213,95004.0,95003.0,1e-06]
[1740419587666,0.42010213,95004.0,95003.0,0.0001303]
[1740419588117,0.43464298,95004.0,95003.0,3e-07]
[1740419588658,0.307893,95001.0,95000.0,1e-08]
[1740419588881,0.42507954,95001.0,95000.0,4.1e-07]
[1740419589287,0.42682371,95001.0,95000.0,4.1e-07]
[1740419589467,0.41228286,95001.0,95000.0,4.1e-07]
[1740419589667,0.51492855,95001.0,95000.0,4.1e-07]
[1740419589912,0.41228286,95001.0,95000.0,4.1e-07]
[1740419590220,0.15963717,95001.0,95000.0,4.1e-07]
[1740419591007,0.16263717,95001.0,95000.0,4.1e-07]
[1740419591294,0.16263717,95001.0,95000.0,0.06572326]
[1740419591496,0.15963717,95001.0,95000.0,0.06572326]
[1740419591703,0.16163717,95001.0,95000.0,0.06572326]
[1740419591910,0.16463717,95001.0,95000.0,0.06572326]
[1740419592340,0.16163717,95001.0,95000.0,0.04670041]
[1740419592524,0.15963717,95001.0,95000.0,0.04670041]
[1740419592698,0.15963717,95001.0,95000.0,0.06572326]
[1740419592897,0.16063717,95001.0,95000.0,0.06572326]
[1740419595541,0.16063717,95001.0,95000.0,4.1e-07]
[1740419595871,0.15963717,95001.0,95000.0,4.1e-07]
[1740419597204,0.26228286,95001.0,95000.0,4.1e-07]
[1740419598650,0.26528286,95001.0,95000.0,4.1e-07]
[1740419598801,0.26228286,95001.0,95000.0,4.1e-07]
[1740419599005,0.33061495,95001.0,95000.0,4.1e-07]
[1740419599202,0.33561495,95001.0,95000.0,4.1e-07]
[1740419599999,0.33961495,95001.0,95000.0,0.00085091]
[1740419600200,0.33731595,95001.0,95000.0,0.00085091]
[1740419600496,0.33431595,95001.0,95000.0,0.00085091]
[1740419600696,0.33731595,95001.0,95000.0,0.00085091]
[1740419601133,0.48731595,95001.0,95000.0,0.00085091]
[1740419601539,0.48431595,95001.0,95000.0,0.00085091]
[1740419601881,0.48631595,95001.0,95000.0,0.00085091]
[1740419602222,0.49031595,95001.0,95000.0,0.00085091]
[1740419602442,0.48631595,95001.0,95000.0,0.00085091]
[1740419602845,0.48231595,95001.0,95000.0,0.00085091]
[1740419603323,0.48631595,95001.0,95000.0,0.00085091]
[1740419603594,0.48231595,95001.0,95000.0,0.00085091]
[1740419603793,0.48531595,95001.0,95000.0,0.00085091]
[1740419604227,0.49031595,95001.0,95000.0,0.00085091]
[1740419604679,0.48531595,95001.0,95000.0,0.00085091]
[1740419604920,0.48931595,95001.0,95000.0,0.00085091]
[1740419605163,0.48631595,95001.0,95000.0,0.00085091]
[1740419605371,0.48931595,95001.0,95000.0,0.00085091]
[1740419606122,0.42098386,95001.0,95000.0,0.00085091]
[1740419607328,0.41698386,95001.0,95000.0,0.00085091]
[1740419607535,0.43552471,95001.0,95000.0,0.00085091]
[1740419607962,0.43252471,95001.0,95000.0,0.00085091]
[1740419608367,0.43152471,95001.0,95000.0,0.00085091]
[1740419608573,0.52078098,95001.0,95000.0,0.00085091]
[1740419608763,0.32244885,94992.0,94991.0,9.1e-07]
[1740419608966,0.42509454,94992.0,94991.0,4.6e-07]
[1740419609167,0.42682205,94992.0,94991.0,4.6e-07]
[1740419609372,0.52946774,94992.0,94991.0,4.6e-07]
[1740419610193,0.53346774,94992.0,94991.0,4.6e-07]
[1740419611279,0.53346774,94992.0,94967.0,0.01902285]
[1740419611280,0.15,94987.0,94975.0,6.6e-07]
[1740419611460,0.32247485,94976.0,94975.0,6.6e-07]
[1740419611662,0.41057969,94976.0,94975.0,6.6e-07]
[1740419611864,0.41228783,94976.0,94975.0,6.6e-07]
[1740419613287,0.43366869,94976.0,94975.0,6.6e-07]
[1740419614281,0.43966869,94976.0,94975.0,6.6e-07]
[1740419614754,0.43466869,94976.0,94975.0,6.6e-07]
[1740419615602,0.43966869,94976.0,94975.0,6.6e-07]
[1740419616524,0.13173469,94976.0,94975.0,6.6e-07]
[1740419616735,0.28966869,94976.0,94975.0,6.6e-07]
[1740419617177,0.029089,94976.0,94975.0,0.09722351]
[1740419617407,0.187023,94976.0,94975.0,0.14382351]
[1740419618159,0.176023,94976.0,94975.0,0.14382351]
[1740419618364,0.181023,94976.0,94975.0,0.14382351]
[1740419620208,0.36494239,94976.0,94975.0,0.04660066]
[1740419620411,0.36494239,94976.0,94975.0,6.6e-07]
[1740419620608,0.28366869,94976.0,94975.0,6.6e-07]
[1740419621009,0.28066869,94976.0,94975.0,6.6e-07]
[1740419621282,0.27866869,94976.0,94975.0,6.6e-07]
[1740419621484,0.157956,94963.0,94962.0,0.0477]
[1740419621702,0.26060169,94963.0,94962.0,0.0477]
[1740419622105,0.26233037,94963.0,94962.0,0.0477]
[1740419622948,0.26245939,94963.0,94962.0,0.0477]
[1740419623094,0.26905463,94963.0,94962.0,0.0477]
[1740419623520,0.16640894,94963.0,94962.0,0.0477]
[1740419623922,0.16740894,94963.0,94962.0,0.0477]
[1740419624675,0.16640894,94963.0,94962.0,0.0477]
[1740419629630,0.16640894,94963.0,94962.0,0.06672285]
[1740419630963,0.16640894,94963.0,94962.0,0.0477]
[1740419631166,0.157964,94958.0,94957.0,0.0774]
[1740419631573,0.15968809,94958.0,94957.0,0.0774]
[1740419632075,0.16628333,94958.0,94957.0,0.0774]
[1740419634234,0.16628333,94958.0,94957.0,0.09642285]
[1740419635456,0.16628333,94958.0,94957.0,0.09727355]
[1740419637421,0.15968809,94958.0,94957.0,0.09727355]
[1740419637922,0.16628337,94958.0,94957.0,0.09727355]
[1740419642742,0.00831937,94958.0,94957.0,0.09727355]
[1740419642950,0.00659528,94958.0,94957.0,0.09727355]
[1740419643163,0.00659528,94958.0,94957.0,0.14457355]
[1740419643389,0.00659528,94958.0,94957.0,0.40518524]
[1740419643820,0.00659528,94958.0,94957.0,0.87758524]
[1740419644028,0.00012902,94963.0,94962.0,0.157957]
[1740419644231,0.00012902,94963.0,94962.0,0.23718569]
[1740419644895,0.00012902,94963.0,94962.0,0.22718569]
[1740419645717,0.00112902,94963.0,94962.0,0.22718569]
[1740419647844,0.00112902,94963.0,94962.0,0.54958569]
[1740419649750,0.00112902,94963.0,94962.0,0.46672285]
[1740419649953,0.15908502,94963.0,94962.0,0.14432285]
[1740419650110,0.16125678,94963.0,94962.0,0.1253]
[1740419650323,0.16125678,94963.0,94962.0,0.14432285]
[1740419651143,0.16025678,94963.0,94962.0,0.14432285]
[1740419651354,0.00230078,94963.0,94959.0,0.01902285]
[1740419651547,0.157961,94960.0,94959.0,0.01902285]
[1740419651754,0.157964,94958.0,94957.0,0.0008507]
[1740419652055,0.16012682,94958.0,94957.0,0.0008507]
[1740419655247,0.16672217,94958.0,94957.0,0.0008507]
[1740419656478,0.16012682,94958.0,94957.0,0.0008507]
[1740419664373,0.16312682,94958.0,94957.0,0.0008507]
[1740419664565,0.16012682,94958.0,94957.0,0.0008507]
[1740419664772,0.00202764,94958.0,94957.0,0.0008507]
[1740419664993,0.004,94958.0,94957.0,0.0008507]
[1740419665203,0.16399164,94958.0,94957.0,0.0008507]
[1740419665440,0.15999164,94958.0,94957.0,0.0008507]
[1740419665811,0.16099164,94958.0,94957.0,0.0008507]
[1740419669056,0.16758734,94958.0,94957.0,0.0008507]
[1740419670731,0.42023303,94958.0,94957.0,0.0008507]
[1740419671180,0.42023303,94958.0,94957.0,7e-07]
[1740419671181,0.49930571,94958.0,94957.0,7e-07]
[1740419671405,0.15,94957.0,94951.0,7e-07]
[1740419671610,0.307974,94952.0,94951.0,7e-07]
[1740419671802,0.42516054,94952.0,94951.0,7e-07]
[1740419672010,0.42718236,94952.0,94951.0,7e-07]
[1740419672807,0.11920836,94952.0,94951.0,7e-07]
[1740419673058,0.22517485,94951.0,94924.0,0.0468]
[1740419673207,0.157994,94940.0,94924.0,0.0468]
[1740419673410,0.26063969,94940.0,94924.0,0.0468]
[1740419673663,0.26265197,94940.0,94924.0,0.0468]
[1740419675233,0.26765197,94940.0,94924.0,0.0468]
[1740419675431,0.27424767,94940.0,94924.0,0.06582285]
[1740419675654,0.27424767,94940.0,94929.0,0.01902285]
[1740419675839,0.01660798,94940.0,94931.0,0.01902285]
[1740419676039,0.17460198,94940.0,94931.0,0.01902285]
[1740419676679,0.17160198,94940.0,94931.0,0.01902285]
[1740419676896,0.16500628,94940.0,94931.0,0.01902285]
[1740419677438,0.16000628,94940.0,94931.0,0.01902285]
[1740419677648,0.32155798,94940.0,94924.0,0.0468]
[1740419678050,0.32455798,94940.0,94924.0,0.0468]
[1740419678254,0.32855798,94940.0,94924.0,0.0468]
[1740419678999,0.32555798,94940.0,94924.0,0.0468]
[1740419679227,0.32455798,94940.0,94924.0,0.0468]
[1740419680883,0.32455798,94940.0,94911.0,0.01942285]
[1740419680884,0.30979882,94940.0,94911.0,0.01942285]
[1740419681083,0.158012,94929.0,94914.0,0.01902285]
[1740419681288,0.26065769,94929.0,94914.0,0.01902285]
[1740419681477,0.2624198,94929.0,94911.0,0.01942285]
[1740419682500,0.2644198,94929.0,94911.0,0.01942285]
[1740419683279,0.36860543,94929.0,94911.0,0.0004]
[1740419684107,0.37160543,94929.0,94911.0,0.0004]
[1740419685955,0.28196065,94929.0,94911.0,0.0004]
[1740419687103,0.43196065,94929.0,94911.0,0.0004]
[1740419687506,0.4174198,94929.0,94911.0,0.0004]
[1740419692430,0.4174198,94929.0,94928.0,0.08017]
[1740419692603,0.4174198,94929.0,94928.0,0.12937]
[1740419693002,0.31477411,94929.0,94928.0,0.12937]
[1740419693201,0.31177411,94929.0,94928.0,0.12937]
[1740419693628,0.00176211,94929.0,94928.0,0.12937]
[1740419693829,0.15977411,94929.0,94928.0,0.12937]
[1740419694066,0.158012,94930.0,94928.0,0.14839285]
[1740419694278,0.00184197,94929.0,94928.0,0.14839285]
[1740419694708,0.158007,94933.0,94928.0,0.14839285]
[1740419694896,0.158012,94929.0,94928.0,0.14839285]
[1740419695295,0.158011,94930.0,94928.0,0.14839285]
[1740419695498,0.00184071,94932.0,94931.0,0.01902285]
[1740419695663,0.00184071,94932.0,94931.0,0.30113185]
[1740419697442,0.00184071,94932.0,94931.0,0.14312285]
[1740419697910,0.00184071,94932.0,94931.0,0.30113185]
[1740419698163,0.00184071,94932.0,94931.0,0.14312285]
[1740419700531,0.15984771,94932.0,94931.0,0.1241]
[1740419700685,0.15984771,94932.0,94931.0,0.0482]
[1740419700888,0.16139328,94932.0,94931.0,0.0482]
[1740419701091,0.16139328,94932.0,94931.0,0.06722285]
[1740419701291,0.32377341,94960.0,94931.0,0.06722285]
[1740419701466,0.158007,94932.0,94931.0,0.067327]
[1740419703484,0.10264569,94948.0,94934.0,0.01902285]
[1740419703700,0.05214085,94967.0,94941.0,0.01902285]
[1740419703908,0.05214085,94967.0,94944.0,0.01902285]
[1740419703909,0.210618,94959.0,94944.0,0.01902285]
[1740419704121,0.15,94950.0,94936.0,0.01902285]
[1740419704324,0.157999,94937.0,94936.0,0.01902285]
[1740419709560,0.158001,94936.0,94935.0,0.09992285]
[1740419711186,0.210665,94938.0,94931.0,0.04915355]
[1740419711383,0.210665,94938.0,94931.0,0.00095355]
[1740419711384,0.308007,94932.0,94931.0,0.00095355]
[1740419711561,0.41065269,94932.0,94931.0,0.00095355]
[1740419714202,0.41265269,94932.0,94931.0,0.00095355]
[1740419715647,0.41565269,94932.0,94931.0,0.00095355]
[1740419722535,0.41365269,94932.0,94931.0,0.00095355]
[1740419722693,0.41065269,94932.0,94931.0,0.00095355]
[1740419722893,0.41165269,94932.0,94931.0,0.00095355]
[1740419723094,0.41265269,94932.0,94931.0,0.00095355]
[1740419723500,0.41065269,94932.0,94931.0,0.00095355]
[1740419723914,0.51329838,94932.0,94931.0,0.00095355]
[1740419724433,0.41065269,94932.0,94931.0,0.00095355]
[1740419725234,0.308007,94932.0,94931.0,0.00095355]
[1740419725434,0.309007,94932.0,94931.0,0.0199764]
[1740419725958,0.310007,94932.0,94931.0,0.0199764]
[1740419726159,0.310007,94932.0,94931.0,0.0981764]
[1740419726538,0.48578769,94932.0,94931.0,0.00095355]
[1740419727931,0.48478769,94932.0,94931.0,0.00095355]
[1740419728133,0.48378769,94932.0,94931.0,0.00095355]
[1740419728313,0.48678769,94932.0,94931.0,0.00095355]
[1740419728768,0.48378769,94932.0,94931.0,0.00095355]
[1740419728953,0.49189411,94932.0,94931.0,0.00095355]
[1740419729149,0.49389411,94932.0,94931.0,0.00095355]
[1740419729449,0.49589411,94932.0,94931.0,0.00095355]
[1740419729649,0.49189411,94932.0,94931.0,0.00095355]
[1740419729892,0.49389411,94932.0,94931.0,0.00095355]
[1740419730298,0.49589411,94932.0,94931.0,0.00095355]
[1740419730511,0.49789411,94932.0,94931.0,0.00095355]
[1740419731242,0.42475911,94932.0,94931.0,0.00095355]
[1740419731665,0.006,94932.0,94931.0,0.00095355]
[1740419732022,0.006,94932.0,94931.0,0.1488764]
[1740419732239,0.00519786,94932.0,94931.0,0.1488764]
[1740419732611,0.002,94932.0,94931.0,0.1488764]
[1740419732824,0.30453108,94945.0,94931.0,0.1488764]
[1740419732825,0.158007,94933.0,94931.0,0.1488764]
[1740419733028,0.158007,94932.0,94931.0,0.1488764]
[1740419733227,0.158002,94935.0,94931.0,0.1488764]
[1740419733372,0.210669,94936.0,94931.0,0.1488764]
[1740419733573,0.09388208,94945.0,94943.0,0.01858708]
[1740419733780,0.368637,94944.0,94943.0,0.01858708]
[1740419733987,0.368637,94944.0,94943.0,0.09518708]
[1740419736698,0.370637,94944.0,94943.0,0.09518708]
[1740419736899,0.371637,94944.0,94943.0,0.09518708]
[1740419737308,0.003,94944.0,94943.0,0.09518708]
[1740419737504,0.003,94944.0,94943.0,0.14338708]
[1740419737714,0.003,94944.0,94943.0,0.30137608]
[1740419738594,0.001,94944.0,94943.0,0.30137608]
[1740419739334,0.001,94944.0,94943.0,0.14338708]
[1740419739503,0.157987,94944.0,94943.0,0.14338708]
[1740419739920,0.157987,94944.0,94943.0,0.1248]
[1740419740138,0.157987,94944.0,94943.0,0.0482]
[1740419740311,0.157997,94938.0,94937.0,0.0763]
[1740419740513,0.158007,94932.0,94931.0,0.0008495]
[1740419741742,0.26065269,94932.0,94931.0,0.0008495]
[1740419743470,0.26265269,94932.0,94931.0,0.0008495]
[1740419744305,0.26365269,94932.0,94931.0,0.0008495]
[1740419745433,0.158012,94929.0,94928.0,1e-06]
[1740419745572,0.42519854,94929.0,94928.0,1e-06]
[1740419747453,0.42919854,94929.0,94928.0,1e-06]
[1740419748430,0.43419854,94929.0,94928.0,1e-06]
[1740419748653,0.53284423,94929.0,94928.0,1e-06]
[1740419749059,0.53384423,94929.0,94928.0,1e-06]
[1740419749255,0.158041,94912.0,94909.0,0.0142422]
[1740419750573,0.160041,94912.0,94909.0,0.0142422]